[Event "SixDays IM March 2024"]
[Site "Budapest"]
[Date "2024.04.03"]
[Round "7.5"]
[White "Miszler, Levente"]
[Black "Horvath, David"]
[Result "1-0"]
[ECO "E01"]
[WhiteElo "2287"]
[BlackElo "2330"]
[Annotator "RC"]
[PlyCount "75"]
[EventDate "2024.03.26"]
[EventType "tourn"]
[EventCountry "HUN"]
[SourceTitle "playchess.com"]
[Source "ChessBase"]
[SourceQuality "1"]
[TimeControl "5400+30"]

1. d4 {[%emt 0:01:51]} Nf6 {[%emt 0:00:04]} 2. c4 {[%emt 0:00:15]} e6 {[%emt 0:00:05]} 3. g3 {[%emt 0:00:11]} d5 {[%emt 0:00:15]} 4. Bg2 {[%emt 0:00:22]} Bb4+ {[%emt 0:00:12]} 5. Nd2 {[%emt 0:00:12]} O-O {[%emt 0:00:10]} 6. Ngf3 {[%emt 0:00:04]} b6 {[%emt 0:00:06]} 7. O-O {[%emt 0:00:33]} Bb7 {[%emt 0:00:05]} 8. a3 {[%emt 0:01:13]} Be7 {[%emt 0:03:43]} 9. cxd5 {[%emt 0:01:52]} exd5 {[%emt 0:06:31]} 10. b4 {[%emt 0:00:28]} a5 {[%emt 0:06:24]} 11. b5 {[%emt 0:01:25]} c6 {[%emt 0:00:19]} 12. Qa4 {[%emt 0:03:51]} cxb5 {[%emt 0:16:25]} 13. Qxb5 {[%emt 0:00:17]} Ba6 {[%emt 0:00:10]} 14. Qb3 {[%emt 0:00:50]} Nc6 {[%emt 0:01:34]} 15. Re1 {[%emt 0:12:03]} b5 {[%emt 0:07:34]} 16. Bb2 {[%emt 0:08:33]} Qb6 {[%emt 0:10:09]} 17. e4 dxe4 {[%emt 0:10:12]} 18. Nxe4 {[%emt 0:08:28]} Nxe4 {[%emt 0:00:09]} 19. Rxe4 {[%emt 0:00:05]} Bf6 {[%emt 0:00:07]} 20. d5 {[%emt 0:03:27]} a4 {[%emt 0:07:05]} 21. Qc2 {[%emt 0:10:07]} Na5 {[%emt 0:00:06]} 22. Bxf6 {[%emt 0:13:07]} Qxf6 {[%emt 0:00:23]} 23. Rae1 {[%emt 0:00:08]} Rac8 {[%emt 0:14:17]} 24. Qd1 {[%emt 0:00:31]} Nb3 {[%emt 0:04:42]} 25. Ne5 {[%emt 0:04:45]} Qd6 {[%emt 0:06:48]} 26. Nc6 {[%emt 0:02:16]} Kh8 {[%emt 0:00:05]} 27. Bh3 {[%emt 0:03:02]} Ra8 {[%emt 0:00:37]} 28. Re7 {[%emt 0:02:12]} Bc8 {[%emt 0:00:44]} 29. Bxc8 {[%emt 0:03:36]} Raxc8 {[%emt 0:00:09]} 30. Qg4 {[%emt 0:00:17]} Ra8 {[%emt 0:03:13]} 31. Ne5 {[%emt 0:03:46]} Kg8 {[%emt 0:01:57]} 32. Nd7 {[%emt 0:00:14]} Rfd8 {[%emt 0:00:40]} 33. R1e6 {[%emt 0:01:17]} Qxa3 {[%emt 0:00:47]} 34. Nf6+ {[%emt 0:00:33]} Kf8 {[%emt 0:01:05]} 35. Nxh7+ {[%emt 0:00:34]} Kg8 {[%emt 0:00:04]} 36. Nf6+ {[%emt 0:00:25]} Kf8 {[%emt 0:00:01]} 37. Qh5 {[%emt 0:00:56]} Qc1+ {[%emt 0:00:41]} 38. Kg2 {[%emt 0:00:05]} 1-0

[Event "SixDays IM March 2024"]
[Site "Budapest"]
[Date "2024.04.03"]
[Round "8.1"]
[White "Hesham, Abdelrahman"]
[Black "Horvath, David"]
[Result "1-0"]
[ECO "D35"]
[WhiteElo "2366"]
[BlackElo "2330"]
[Annotator "RC"]
[PlyCount "57"]
[EventDate "2024.03.26"]
[EventType "tourn"]
[EventCountry "HUN"]
[SourceTitle "playchess.com"]
[Source "ChessBase"]
[SourceQuality "1"]
[TimeControl "5400+30"]

1. d4 {[%emt 0:13:14]} Nf6 {[%emt 0:00:05]} 2. c4 {[%emt 0:00:04]} e6 {[%emt 0:00:04]} 3. Nc3 {[%emt 0:00:04]} d5 {[%emt 0:00:04]} 4. cxd5 {[%emt 0:00:06]} Nxd5 {[%emt 0:00:04]} 5. e4 {[%emt 0:01:37]} Nxc3 {[%emt 0:00:05]} 6. bxc3 {[%emt 0:00:04]} c5 {[%emt 0:00:05]} 7. Rb1 {[%emt 0:01:31]} cxd4 {[%emt 0:11:31]} 8. cxd4 {[%emt 0:00:06]} Nc6 {[%emt 0:00:05]} 9. Bb5 {[%emt 0:06:46]} a6 {[%emt 0:09:04]} 10. Bxc6+ {[%emt 0:00:09]} bxc6 {[%emt 0:00:02]} 11. Nf3 {[%emt 0:00:15]} Bd6 {[%emt 0:11:32]} 12. O-O {[%emt 0:05:57]} O-O {[%emt 0:00:15]} 13. Qc2 {[%emt 0:09:10]} Bd7 {[%emt 0:12:44]} 14. Qc3 {[%emt 0:03:51]} a5 {[%emt 0:11:16]} 15. Ba3 {[%emt 0:00:21]} Bb4 {[%emt 0:00:16]} 16. Bxb4 {[%emt 0:01:43]} axb4 {[%emt 0:00:05]} 17. Qc4 {[%emt 0:02:07]} Qa5 {[%emt 0:12:20]} 18. Ne5 {[%emt 0:02:41]} Bc8 {[%emt 0:07:12]} 19. Nxc6 {[%emt 0:08:08]} Qxa2 {[%emt 0:00:13]} 20. Qxb4 {[%emt 0:00:32]} Ba6 {[%emt 0:06:01]} 21. Rb2 {[%emt 0:03:59]} Qc4 {[%emt 0:01:11]} 22. Qxc4 {[%emt 0:01:49]} Bxc4 {[%emt 0:00:02]} 23. Rc1 {[%emt 0:00:43]} Bd3 {[%emt 0:03:01]} 24. f3 {[%emt 0:00:09]} f5 {[%emt 0:00:07]} 25. d5 {[%emt 0:05:26]} fxe4 {[%emt 0:11:17]} 26. d6 {[%emt 0:00:07]} exf3 {[%emt 0:00:47]} 27. gxf3 {[%emt 0:00:20]} e5 {[%emt 0:00:35]} 28. d7 {[%emt 0:01:25]} e4 {[%emt 0:03:03]} 29. Rd2 {[%emt 0:01:43]} 1-0

[Event "SixDays IM March 2024"]
[Site "Budapest"]
[Date "2024.04.03"]
[Round "8.2"]
[White "Radzimski, Antoni"]
[Black "Miszler, Levente"]
[Result "0-1"]
[ECO "C00"]
[WhiteElo "2197"]
[BlackElo "2287"]
[Annotator "RC"]
[PlyCount "100"]
[EventDate "2024.03.26"]
[EventType "tourn"]
[EventCountry "HUN"]
[SourceTitle "playchess.com"]
[Source "ChessBase"]
[SourceQuality "1"]
[TimeControl "5400+30"]

1. e4 {[%emt 0:00:10]} e6 {[%emt 0:00:05]} 2. Qe2 {[%emt 0:00:18]} c5 {[%emt 0:00:11]} 3. Nf3 {[%emt 0:00:09]} Nc6 {[%emt 0:00:14]} 4. g3 {[%emt 0:00:04]} g6 {[%emt 0:00:12]} 5. Bg2 {[%emt 0:00:04]} Bg7 {[%emt 0:00:07]} 6. O-O {[%emt 0:00:06]} e5 {[%emt 0:00:23]} 7. d3 {[%emt 0:01:03]} Nge7 {[%emt 0:00:10]} 8. c3 {[%emt 0:00:02]} O-O {[%emt 0:00:18]} 9. a3 {[%emt 0:00:02]} d6 {[%emt 0:06:38]} 10. b4 {[%emt 0:00:06]} a6 {[%emt 0:02:51]} 11. Be3 {[%emt 0:02:58]} b6 {[%emt 0:01:19]} 12. Ne1 {[%emt 0:10:20]} Bb7 {[%emt 0:03:30]} 13. Nd2 {[%emt 0:03:52]} f5 {[%emt 0:02:17]} 14. f3 {[%emt 0:00:29]} f4 {[%emt 0:06:22]} 15. Bf2 {[%emt 0:00:07]} Bc8 {[%emt 0:01:43]} 16. Rd1 {[%emt 0:03:15]} g5 {[%emt 0:01:33]} 17. Nc2 {[%emt 0:07:18]} Be6 {[%emt 0:03:52]} 18. Nc4 {[%emt 0:07:36]} d5 {[%emt 0:05:02]} 19. exd5 {[%emt 0:01:02]} Nxd5 {[%emt 0:00:27]} 20. Qe1 {[%emt 0:03:28]} Qe7 {[%emt 0:07:53]} 21. bxc5 {[%emt 0:10:37]} bxc5 {[%emt 0:00:18]} 22. d4 {[%emt 0:01:23]} cxd4 {[%emt 0:15:04]} 23. cxd4 {[%emt 0:00:08]} Rac8 {[%emt 0:00:06]} 24. dxe5 {[%emt 0:07:33]} Na7 {[%emt 0:04:06]} 25. Nd4 {[%emt 0:01:03]} Rxc4 {[%emt 0:04:18]} 26. Nxe6 {[%emt 0:00:02]} Qxe6 {[%emt 0:01:19]} 27. Bxa7 {[%emt 0:00:10]} Nc3 {[%emt 0:04:09]} 28. Rd6 {[%emt 0:06:55]} Qxe5 {[%emt 0:00:20]} 29. Qxe5 {[%emt 0:00:05]} Bxe5 {[%emt 0:00:04]} 30. Re6 {[%emt 0:00:25]} Bc7 {[%emt 0:04:34]} 31. gxf4 {[%emt 0:00:58]} Rfxf4 {[%emt 0:02:03]} 32. Be3 {[%emt 0:03:44]} Ne2+ {[%emt 0:04:16]} 33. Kf2 {[%emt 0:05:53]} Rc2 {[%emt 0:00:10]} 34. Ke1 {[%emt 0:04:57]} Ba5+ {[%emt 0:08:30]} 35. Kd1 {[%emt 0:00:06]} Ra2 {[%emt 0:00:34]} 36. Bxf4 {[%emt 0:02:00]} Nxf4 {[%emt 0:00:11]} 37. Rxa6 {[%emt 0:02:27]} Rd2+ {[%emt 0:02:53]} 38. Kc1 {[%emt 0:00:16]} Nd3+ {[%emt 0:01:00]} 39. Kb1 {[%emt 0:00:04]} Rb2+ {[%emt 0:00:37]} 40. Ka1 {[%emt 0:00:05]} Bc3 {[%emt 0:00:03]} 41. Rc6 {[%emt 0:00:19]} Be5 {[%emt 0:01:53]} 42. f4 {[%emt 0:00:34]} gxf4 {[%emt 0:00:35]} 43. Bd5+ {[%emt 0:02:26]} Kf8 {[%emt 0:00:07]} 44. Rf3 {[%emt 0:01:40]} Rf2+ {[%emt 0:01:42]} 45. Kb1 {[%emt 0:00:12]} Rb2+ {[%emt 0:00:04]} 46. Ka1 {[%emt 0:00:04]} Rxh2+ {[%emt 0:00:05]} 47. Kb1 {[%emt 0:00:03]} Rb2+ {[%emt 0:00:07]} 48. Ka1 {[%emt 0:00:03]} Rb5+ {[%emt 0:00:50]} 49. Ka2 {[%emt 0:00:03]} Rxd5 {[%emt 0:00:10]} 50. Rh6 {[%emt 0:01:23]} Rb5 {[%emt 0:00:54]} 0-1

[Event "SixDays IM March 2024"]
[Site "Budapest"]
[Date "2024.04.03"]
[Round "8.3"]
[White "Advaitt Srikant Koduri"]
[Black "Krizsany, Laszlo"]
[Result "0-1"]
[ECO "A04"]
[WhiteElo "2125"]
[BlackElo "2341"]
[Annotator "RC"]
[PlyCount "140"]
[EventDate "2024.03.26"]
[EventType "tourn"]
[EventCountry "HUN"]
[SourceTitle "playchess.com"]
[Source "ChessBase"]
[SourceQuality "1"]
[TimeControl "5400+30"]

1. Nf3 {[%emt 0:00:34]} f5 {[%emt 0:00:17]} 2. d4 {[%emt 0:01:10]} Nf6 {[%emt 0:00:34]} 3. g3 {[%emt 0:00:09]} g6 {[%emt 0:00:06]} 4. Bg2 {[%emt 0:00:07]} Bg7 {[%emt 0:00:06]} 5. O-O {[%emt 0:00:06]} O-O {[%emt 0:00:04]} 6. c4 {[%emt 0:00:06]} d6 {[%emt 0:00:07]} 7. Nc3 {[%emt 0:00:40]} Qe8 {[%emt 0:00:07]} 8. d5 {[%emt 0:15:45]} Na6 {[%emt 0:00:09]} 9. e4 {[%emt 0:02:50]} fxe4 {[%emt 0:03:23]} 10. Ng5 {[%emt 0:00:29]} Bg4 {[%emt 0:03:32]} 11. Qd2 {[%emt 0:17:46]} Nc5 {[%emt 0:05:24]} 12. Ngxe4 {[%emt 0:01:25]} Nfxe4 {[%emt 0:07:34]} 13. Nxe4 {[%emt 0:00:37]} Nxe4 {[%emt 0:00:15]} 14. Bxe4 {[%emt 0:00:10]} c5 {[%emt 0:00:46]} 15. Rb1 {[%emt 0:19:23]} b5 {[%emt 0:07:32]} 16. Qc2 {[%emt 0:04:57]} Rb8 {[%emt 0:06:06]} 17. Be3 {[%emt 0:04:29]} bxc4 {[%emt 0:02:00]} 18. Qxc4 {[%emt 0:00:34]} Rb4 {[%emt 0:03:14]} 19. Qc2 {[%emt 0:01:10]} Bf5 {[%emt 0:07:18]} 20. Bxf5 Rxf5 {[%emt 0:00:09]} 21. a3 {[%emt 0:01:41]} Rb7 {[%emt 0:02:09]} 22. Rfd1 {[%emt 0:04:05]} a5 {[%emt 0:02:46]} 23. b3 {[%emt 0:00:55]} h5 {[%emt 0:05:45]} 24. h4 {[%emt 0:02:13]} Kh7 {[%emt 0:02:42]} 25. Rd2 {[%emt 0:03:05]} a4 {[%emt 0:03:05]} 26. b4 {[%emt 0:04:54]} cxb4 {[%emt 0:00:10]} 27. axb4 {[%emt 0:00:28]} Qb5 {[%emt 0:02:49]} 28. Qd3 {[%emt 0:03:57]} Rf8 {[%emt 0:05:29]} 29. Qe4 {[%emt 0:01:06]} a3 {[%emt 0:02:02]} 30. Bd4 {[%emt 0:05:26]} Qc4 {[%emt 0:02:53]} 31. Re1 {[%emt 0:02:00]} Qxb4 {[%emt 0:01:48]} 32. Bxg7 {[%emt 0:00:56]} Qxe4 {[%emt 0:01:30]} 33. Rxe4 {[%emt 0:00:06]} Kxg7 {[%emt 0:00:07]} 34. Ra4 {[%emt 0:00:50]} Rf3 {[%emt 0:00:35]} 35. Kg2 {[%emt 0:00:33]} Rc3 {[%emt 0:00:45]} 36. Ra2 {[%emt 0:01:10]} Rc5 {[%emt 0:02:48]} 37. R4xa3 {[%emt 0:00:48]} Rxd5 {[%emt 0:00:14]} 38. Ra8 {[%emt 0:00:21]} Rdb5 {[%emt 0:00:59]} 39. Rc2 {[%emt 0:01:02]} Rb8 {[%emt 0:01:00]} 40. Ra7 {[%emt 0:00:59]} R5b7 {[%emt 0:00:17]} 41. Rxb7 {[%emt 0:00:57]} Rxb7 {[%emt 0:00:03]} 42. Rc8 {[%emt 0:00:10]} Rb3 {[%emt 0:01:13]} 43. Kf1 {[%emt 0:00:34]} Rb2 {[%emt 0:01:14]} 44. Kg2 {[%emt 0:00:25]} Rb3 {[%emt 0:01:39]} 45. Kf1 {[%emt 0:00:15]} d5 {[%emt 0:01:26]} 46. Ke2 {[%emt 0:00:52]} Kf6 {[%emt 0:00:57]} 47. Rc6+ {[%emt 0:00:53]} Kf5 {[%emt 0:00:45]} 48. Rc7 {[%emt 0:00:30]} e5 {[%emt 0:01:13]} 49. Rc6 {[%emt 0:00:44]} Rb2+ {[%emt 0:03:31]} 50. Kf3 {[%emt 0:00:20]} d4 {[%emt 0:01:06]} 51. Rc5 {[%emt 0:00:14]} Rb3+ {[%emt 0:00:10]} 52. Ke2 {[%emt 0:00:22]} Ke4 {[%emt 0:00:19]} 53. Ra5 {[%emt 0:00:19]} Rb2+ {[%emt 0:00:23]} 54. Ke1 {[%emt 0:00:35]} d3 {[%emt 0:00:51]} 55. Ra3 {[%emt 0:00:30]} Kd4 {[%emt 0:00:57]} 56. Ra6 {[%emt 0:00:29]} Re2+ {[%emt 0:01:49]} 57. Kf1 {[%emt 0:00:38]} Re4 {[%emt 0:00:07]} 58. Ra4+ {[%emt 0:00:26]} Kd5 {[%emt 0:00:10]} 59. Ra5+ {[%emt 0:00:21]} Kc6 {[%emt 0:00:59]} 60. Ra6+ {[%emt 0:00:17]} Kc5 {[%emt 0:00:16]} 61. Ra2 {[%emt 0:01:05]} Kb4 {[%emt 0:02:51]} 62. f3 {[%emt 0:00:37]} Kb3 {[%emt 0:00:09]} 63. Rd2 {[%emt 0:00:51]} Kc3 {[%emt 0:00:35]} 64. Ra2 {[%emt 0:00:23]} Rb4 {[%emt 0:00:16]} 65. Ra6 {[%emt 0:00:15]} Rb1+ {[%emt 0:01:30]} 66. Kf2 {[%emt 0:00:20]} Rb2+ {[%emt 0:00:18]} 67. Kf1 {[%emt 0:00:37]} Kd4 {[%emt 0:00:25]} 68. Re6 {[%emt 0:00:31]} Ke3 {[%emt 0:01:09]} 69. Rxe5+ {[%emt 0:00:14]} Kxf3 {[%emt 0:00:05]} 70. Re1 {[%emt 0:00:44]} Rc2 {[%emt 0:00:46]} 0-1

[Event "SixDays IM March 2024"]
[Site "Budapest"]
[Date "2024.04.03"]
[Round "8.5"]
[White "Gu, Crystal Jiuzhou"]
[Black "Toth-Goczo, Melinda"]
[Result "1-0"]
[ECO "B01"]
[WhiteElo "2059"]
[BlackElo "2189"]
[Annotator "RC"]
[PlyCount "113"]
[EventDate "2024.03.26"]
[EventType "tourn"]
[EventCountry "HUN"]
[SourceTitle "playchess.com"]
[Source "ChessBase"]
[SourceQuality "1"]
[TimeControl "5400+30"]

1. e4 {[%emt 0:03:36]} d5 {[%emt 0:00:53]} 2. exd5 {[%emt 0:01:15]} Qxd5 {[%emt 0:00:07]} 3. Nc3 {[%emt 0:00:49]} Qa5 {[%emt 0:00:08]} 4. Nf3 {[%emt 0:00:15]} Nf6 {[%emt 0:07:29]} 5. Bc4 {[%emt 0:08:31]} Bf5 {[%emt 0:06:52]} 6. O-O {[%emt 0:00:41]} e6 {[%emt 0:02:56]} 7. Re1 {[%emt 0:14:54]} Nbd7 {[%emt 0:08:02]} 8. d3 {[%emt 0:09:58]} c6 {[%emt 0:16:14]} 9. Bd2 {[%emt 0:03:22]} Qb6 {[%emt 0:04:29]} 10. Qe2 {[%emt 0:15:56]} Be7 {[%emt 0:17:43]} 11. Na4 {[%emt 0:11:57]} Qc7 {[%emt 0:09:50]} 12. Nd4 {[%emt 0:02:59]} Bg4 {[%emt 0:04:53]} 13. f3 {[%emt 0:01:37]} Qd6 {[%emt 0:03:28]} 14. c3 {[%emt 0:04:27]} Bh5 {[%emt 0:05:01]} 15. Nf5 {[%emt 0:02:07]} exf5 {[%emt 0:01:27]} 16. Bf4 {[%emt 0:01:24]} O-O {[%emt 0:00:09]} 17. Bxd6 {[%emt 0:02:01]} Bxd6 {[%emt 0:00:04]} 18. d4 {[%emt 0:04:01]} b5 {[%emt 0:00:21]} 19. Bxb5 {[%emt 0:00:16]} cxb5 {[%emt 0:00:10]} 20. Qxb5 {[%emt 0:00:07]} Bg6 {[%emt 0:00:56]} 21. Qc6 {[%emt 0:02:29]} Bf4 {[%emt 0:00:41]} 22. g3 {[%emt 0:01:18]} Rfc8 {[%emt 0:01:42]} 23. Qa6 {[%emt 0:00:48]} Bc7 {[%emt 0:00:28]} 24. Re2 {[%emt 0:01:04]} f4 {[%emt 0:00:22]} 25. gxf4 {[%emt 0:01:17]} Nd5 {[%emt 0:01:00]} 26. Rae1 {[%emt 0:01:50]} h5 {[%emt 0:02:14]} 27. Qc6 {[%emt 0:01:48]} N7f6 {[%emt 0:00:21]} 28. Qb5 {[%emt 0:01:12]} Nxf4 {[%emt 0:00:34]} 29. Re7 {[%emt 0:00:39]} Bd6 {[%emt 0:00:44]} 30. R7e3 {[%emt 0:00:48]} N6d5 {[%emt 0:02:35]} 31. Re8+ {[%emt 0:00:53]} Kh7 {[%emt 0:00:11]} 32. Rxc8 {[%emt 0:00:34]} Rxc8 {[%emt 0:00:03]} 33. Qd7 {[%emt 0:00:17]} Nh3+ {[%emt 0:01:23]} 34. Qxh3 {[%emt 0:00:55]} Rd8 {[%emt 0:00:15]} 35. Nc5 {[%emt 0:00:26]} Nf4 {[%emt 0:00:42]} 36. Qh4 {[%emt 0:00:09]} Rb8 {[%emt 0:00:25]} 37. b3 {[%emt 0:00:27]} f6 {[%emt 0:00:41]} 38. Ne4 {[%emt 0:00:33]} Bc7 {[%emt 0:00:14]} 39. Kh1 {[%emt 0:00:47]} Re8 {[%emt 0:02:55]} 40. Nc5 {[%emt 0:00:34]} Rc8 {[%emt 0:00:42]} 41. Ne6 {[%emt 0:00:14]} Nd3 {[%emt 0:00:14]} 42. Rf1 {[%emt 0:01:03]} Bd6 {[%emt 0:00:14]} 43. c4 {[%emt 0:00:33]} Re8 {[%emt 0:01:00]} 44. d5 {[%emt 0:00:16]} Ne5 {[%emt 0:00:16]} 45. Kg2 {[%emt 0:00:37]} Bf7 {[%emt 0:00:26]} 46. f4 {[%emt 0:00:37]} Ng4 {[%emt 0:00:14]} 47. Re1 {[%emt 0:00:12]} Bb4 {[%emt 0:00:09]} 48. Re2 {[%emt 0:00:14]} Bg6 {[%emt 0:00:38]} 49. f5 {[%emt 0:00:43]} Bf7 {[%emt 0:00:23]} 50. Nf4 {[%emt 0:00:34]} Ne3+ {[%emt 0:00:27]} 51. Kf3 {[%emt 0:00:31]} Nxf5 {[%emt 0:00:40]} 52. Qf2 {[%emt 0:00:09]} Rc8 {[%emt 0:00:34]} 53. Qxa7 {[%emt 0:00:27]} Nh4+ {[%emt 0:01:28]} 54. Kg3 {[%emt 0:00:38]} Nf5+ {[%emt 0:00:14]} 55. Kg2 {[%emt 0:00:15]} Rf8 {[%emt 0:00:49]} 56. Ne6 {[%emt 0:00:39]} Nh4+ {[%emt 0:00:24]} 57. Kh3 {[%emt 0:00:35]} 1-0

[Event "SixDays IM March 2024"]
[Site "Budapest"]
[Date "2024.04.04"]
[Round "9.1"]
[White "Toth-Goczo, Melinda"]
[Black "Hesham, Abdelrahman"]
[Result "0-1"]
[ECO "D35"]
[WhiteElo "2189"]
[BlackElo "2366"]
[Annotator "RC"]
[PlyCount "88"]
[EventDate "2024.03.26"]
[EventType "tourn"]
[EventCountry "HUN"]
[SourceTitle "playchess.com"]
[Source "ChessBase"]
[SourceQuality "1"]
[TimeControl "5400+30"]

1. d4 {[%emt 0:00:03]} d5 {[%emt 0:04:58]} 2. c4 {[%emt 0:00:16]} e6 {[%emt 0:00:07]} 3. Nc3 {[%emt 0:00:05]} Nf6 {[%emt 0:00:05]} 4. cxd5 {[%emt 0:00:28]} exd5 {[%emt 0:00:06]} 5. Bg5 {[%emt 0:00:06]} c6 {[%emt 0:00:09]} 6. e3 {[%emt 0:06:39]} h6 {[%emt 0:00:48]} 7. Bh4 {[%emt 0:04:18]} Be7 {[%emt 0:00:10]} 8. Bd3 {[%emt 0:00:25]} O-O {[%emt 0:00:08]} 9. Nge2 {[%emt 0:01:20]} Ne8 {[%emt 0:00:07]} 10. Bg3 {[%emt 0:08:44]} Nd6 {[%emt 0:00:08]} 11. Qc2 {[%emt 0:00:09]} Re8 {[%emt 0:00:05]} 12. O-O {[%emt 0:00:12]} Bf8 {[%emt 0:00:05]} 13. Rab1 {[%emt 0:18:56]} a5 {[%emt 0:04:29]} 14. a3 {[%emt 0:02:29]} Nd7 {[%emt 0:16:11]} 15. b4 {[%emt 0:06:45]} axb4 {[%emt 0:03:40]} 16. axb4 {[%emt 0:00:08]} Nb6 {[%emt 0:03:32]} 17. b5 {[%emt 0:09:18]} Nbc4 {[%emt 0:00:29]} 18. Bxd6 {[%emt 0:06:10]} Bxd6 {[%emt 0:20:00]} 19. Bxc4 {[%emt 0:04:10]} dxc4 {[%emt 0:00:06]} 20. bxc6 {[%emt 0:00:09]} bxc6 {[%emt 0:00:05]} 21. Na4 {[%emt 0:03:02]} Ra5 {[%emt 0:00:17]} 22. Ng3 {[%emt 0:04:15]} Bxg3 {[%emt 0:15:58]} 23. fxg3 {[%emt 0:00:55]} Rxe3 {[%emt 0:01:40]} 24. Qxc4 {[%emt 0:10:15]} Be6 {[%emt 0:00:50]} 25. Qb4 {[%emt 0:01:00]} Rd3 {[%emt 0:13:41]} 26. Rfd1 {[%emt 0:00:12]} Rxd1+ {[%emt 0:00:16]} 27. Rxd1 {[%emt 0:00:05]} Rb5 {[%emt 0:00:05]} 28. Qd2 {[%emt 0:03:16]} Bb3 {[%emt 0:01:51]} 29. Nc3 {[%emt 0:00:06]} Rb4 {[%emt 0:00:56]} 30. Ra1 {[%emt 0:07:26]} Qxd4+ {[%emt 0:05:40]} 31. Qxd4 {[%emt 0:00:05]} Rxd4 {[%emt 0:00:05]} 32. Ra3 {[%emt 0:02:17]} Be6 {[%emt 0:00:24]} 33. Ra6 {[%emt 0:00:22]} Rc4 {[%emt 0:01:47]} 34. Ra3 {[%emt 0:00:07]} Rd4 {[%emt 0:01:20]} 35. Ra6 {[%emt 0:00:20]} c5 {[%emt 0:00:06]} 36. Ra3 {[%emt 0:01:26]} g5 {[%emt 0:01:38]} 37. h3 {[%emt 0:00:14]} Rd3 {[%emt 0:00:37]} 38. Ra8+ {[%emt 0:00:36]} Kg7 {[%emt 0:00:07]} 39. Ne4 {[%emt 0:00:20]} Bd5 {[%emt 0:00:25]} 40. Re8 {[%emt 0:00:25]} Bc6 {[%emt 0:02:19]} 41. Re5 {[%emt 0:01:23]} Re3 {[%emt 0:00:28]} 42. h4 {[%emt 0:00:51]} g4 {[%emt 0:01:15]} 43. Kf2 {[%emt 0:00:54]} Rxe4 {[%emt 0:00:05]} 44. Rxc5 {[%emt 0:00:11]} Re6 {[%emt 0:00:12]} 0-1

[Event "SixDays IM March 2024"]
[Site "Budapest"]
[Date "2024.04.04"]
[Round "9.2"]
[White "Mouhamad, Joachim"]
[Black "Gu, Crystal Jiuzhou"]
[Result "1-0"]
[ECO "B10"]
[WhiteElo "2278"]
[BlackElo "2059"]
[Annotator "RC"]
[PlyCount "103"]
[EventDate "2024.03.26"]
[EventType "tourn"]
[EventCountry "HUN"]
[SourceTitle "playchess.com"]
[Source "ChessBase"]
[SourceQuality "1"]
[TimeControl "5400+30"]

1. e4 {[%emt 0:00:05]} c6 {[%emt 0:03:55]} 2. Nf3 {[%emt 0:00:21]} d5 {[%emt 0:00:05]} 3. Nc3 {[%emt 0:00:15]} dxe4 {[%emt 0:00:05]} 4. Nxe4 {[%emt 0:00:16]} Nf6 {[%emt 0:00:24]} 5. Qe2 {[%emt 0:00:19]} Nxe4 {[%emt 0:00:16]} 6. Qxe4 {[%emt 0:00:12]} Qd5 {[%emt 0:00:05]} 7. Qh4 {[%emt 0:00:35]} Qf5 8. Bd3 {[%emt 0:07:44]} Qg4 {[%emt 0:03:12]} 9. Qg3 {[%emt 0:00:03]} Qxg3 {[%emt 0:01:12]} 10. hxg3 {[%emt 0:00:05]} h6 {[%emt 0:00:53]} 11. b3 {[%emt 0:00:29]} Nd7 {[%emt 0:00:59]} 12. Bb2 {[%emt 0:00:48]} Nc5 13. Be2 {[%emt 0:00:28]} Bf5 {[%emt 0:02:10]} 14. O-O-O {[%emt 0:01:06]} O-O-O {[%emt 0:01:02]} 15. Ne5 {[%emt 0:01:28]} Be6 {[%emt 0:08:51]} 16. Bc4 {[%emt 0:02:02]} Bxc4 {[%emt 0:18:38]} 17. bxc4 {[%emt 0:00:11]} Rg8 {[%emt 0:04:23]} 18. Nxf7 {[%emt 0:00:13]} Re8 {[%emt 0:02:40]} 19. Rde1 {[%emt 0:00:47]} e6 {[%emt 0:00:23]} 20. Be5 {[%emt 0:06:30]} Kd7 {[%emt 0:02:26]} 21. Rh4 {[%emt 0:01:31]} Be7 {[%emt 0:21:32]} 22. Rd4+ {[%emt 0:00:28]} Kc8 {[%emt 0:00:03]} 23. Nd6+ {[%emt 0:02:22]} Bxd6 {[%emt 0:00:06]} 24. Bxd6 {[%emt 0:00:12]} Nd7 {[%emt 0:00:13]} 25. Rf4 {[%emt 0:06:47]} Nf6 {[%emt 0:01:47]} 26. c5 {[%emt 0:00:27]} b6 {[%emt 0:07:02]} 27. d4 {[%emt 0:02:28]} Kd7 {[%emt 0:02:31]} 28. c4 {[%emt 0:00:19]} Rc8 {[%emt 0:04:04]} 29. Re3 {[%emt 0:01:03]} Rcd8 {[%emt 0:09:37]} 30. a4 {[%emt 0:01:11]} Rge8 {[%emt 0:00:51]} 31. Kc2 {[%emt 0:05:03]} Kc8 {[%emt 0:00:37]} 32. Rb3 {[%emt 0:02:04]} Rd7 {[%emt 0:04:31]} 33. Be5 {[%emt 0:02:33]} Kb7 {[%emt 0:01:08]} 34. a5 {[%emt 0:13:17]} b5 {[%emt 0:00:58]} 35. cxb5 {[%emt 0:00:03]} cxb5 {[%emt 0:00:05]} 36. Bxf6 {[%emt 0:00:54]} gxf6 {[%emt 0:00:08]} 37. Rxb5+ {[%emt 0:00:31]} Kc6 {[%emt 0:01:10]} 38. Rb4 {[%emt 0:00:44]} Rf8 {[%emt 0:00:25]} 39. Rh4 {[%emt 0:02:26]} Rh8 {[%emt 0:00:41]} 40. Rb3 {[%emt 0:00:30]} h5 {[%emt 0:00:43]} 41. Rf3 {[%emt 0:03:51]} Rf7 {[%emt 0:00:26]} 42. Re3 {[%emt 0:02:47]} Re7 {[%emt 0:00:11]} 43. Kd3 {[%emt 0:01:35]} Kd5 {[%emt 0:00:52]} 44. g4 {[%emt 0:00:15]} Rg8 {[%emt 0:00:31]} 45. Rxh5+ {[%emt 0:00:09]} e5 {[%emt 0:00:23]} 46. dxe5 {[%emt 0:00:14]} fxe5 {[%emt 0:00:08]} 47. f4 {[%emt 0:02:25]} Rxg4 {[%emt 0:00:18]} 48. g3 {[%emt 0:00:54]} Kxc5 {[%emt 0:00:35]} 49. Rhxe5+ {[%emt 0:00:07]} Rxe5 {[%emt 0:00:06]} 50. Rxe5+ {[%emt 0:00:06]} Kd6 {[%emt 0:00:25]} 51. Rg5 {[%emt 0:00:36]} Rxg5 {[%emt 0:00:06]} 52. fxg5 {[%emt 0:00:02]} 1-0